bitfinex/quotes_ETHUSD_20251028
["timestamp","ask_amount","ask_price","bid_price","bid_amount"]
[1761618023678,0.00100001,4126.8,4126.7,13.67129583]
[1761618025763,0.00100001,4126.8,4126.7,10.60034253]
[1761618027973,0.00100001,4126.8,4126.7,10.59934253]
[1761618028282,0.00100001,4126.8,4126.7,14.48034253]
[1761618029568,0.00100001,4126.8,4126.7,14.47934253]
[1761618030792,0.00100001,4126.8,4126.7,13.89214253]
[1761618031158,0.00100001,4126.8,4126.7,12.92414253]
[1761618031358,0.00100001,4126.8,4126.7,13.89214253]
[1761618036338,0.00100001,4126.8,4126.7,13.79518941]
[1761618036974,0.00100001,4126.8,4126.7,13.79618941]
[1761618038304,0.00100001,4126.8,4126.7,13.79518941]
[1761618038891,0.00100001,4126.8,4126.7,13.79618941]
[1761618043796,0.00100001,4126.8,4126.7,13.79518941]
[1761618044316,0.00100001,4126.8,4126.7,13.79618941]
[1761618045912,0.00100001,4126.8,4126.7,13.89313572]
[1761618047895,0.00100001,4126.8,4126.7,15.44833572]
[1761618048812,0.00100001,4126.8,4126.7,15.69073572]
[1761618049178,0.00100001,4126.8,4126.7,16.09623972]
[1761618049816,0.00100001,4126.8,4126.7,12.21623972]
[1761618053036,0.00100001,4126.8,4126.7,11.97383972]
[1761618053200,0.00100001,4126.8,4126.7,5.61849864]
[1761618053517,0.00100001,4126.8,4126.7,5.06724375]
[1761618055396,0.43260001,4126.8,4126.7,5.06724375]
[1761618056107,0.00100001,4126.8,4126.7,8.89838483]
[1761618057824,0.43260001,4126.8,4126.7,0.1208]
[1761618058119,0.43260001,4126.8,4126.7,2.54404375]
[1761618060386,1.72260001,4126.8,4126.7,2.54404375]
[1761618061222,1.72260001,4126.8,4126.7,0.1208]
[1761618062224,1.72260001,4126.8,4126.7,2.54404375]
[1761618063387,1.72260001,4126.8,4126.7,0.1208]
[1761618063594,1.91744001,4126.8,4126.7,0.1208]
[1761618063808,1.91744001,4126.8,4126.7,2.54404375]
[1761618064002,1.72260001,4126.8,4126.7,2.54404375]
[1761618064422,1.72260001,4126.8,4126.7,0.1208]
[1761618065325,1.72260001,4126.8,4126.6,0.002]
[1761618065627,0.4342,4126.7,4126.6,0.002]
[1761618065924,1.7242,4126.7,4126.6,0.002]
[1761618066125,1.93138,4126.7,4126.6,0.002]
[1761618068346,1.7242,4126.7,4126.6,0.002]
[1761618068912,1.7242,4126.7,4126.6,2.42530247]
[1761618069515,1.7242,4126.7,4126.6,0.002]
[1761618073121,1.7242,4126.7,4126.6,2.42530247]
[1761618074334,1.7242,4126.7,4126.6,0.002]
[1761618075601,1.9193,4126.7,4126.6,0.002]
[1761618077122,4.34254375,4126.7,4126.6,0.002]
[1761618077433,1.9193,4126.7,4126.6,0.002]
[1761618077639,4.34254375,4126.7,4126.6,0.002]
[1761618079120,6.86674375,4126.7,4126.6,0.002]
[1761618079322,0.405504,4126.0,4123.3,2.42519586]
[1761618079527,0.405504,4126.0,4123.1,5.47300279]
[1761618079528,0.405504,4126.0,4123.1,0.01]
[1761618079529,0.2282,4124.2,4123.1,0.01]
[1761618079856,1.29,4124.1,4123.1,0.01]
[1761618080141,0.454,4124.0,4123.1,0.01]
[1761618080342,0.454,4124.0,4123.3,2.42518837]
[1761618080713,0.454,4124.0,4123.4,2.42517785]
[1761618081222,0.454,4124.0,4123.9,2.42488906]
[1761618081529,0.454,4124.0,4123.4,0.24351778]
[1761618081728,0.454,4124.0,4123.9,2.42488906]
[1761618082117,0.454,4124.0,4123.1,0.01]
[1761618082309,0.454,4124.0,4123.6,2.42505616]
[1761618082713,0.454,4124.0,4123.7,2.42499774]
[1761618083945,1.29,4123.9,4123.7,2.42499774]
[1761618084341,0.454,4123.8,4123.7,2.42499774]
[1761618084812,1.744,4123.8,4123.7,2.42499774]
[1761618085013,1.744,4123.8,4123.1,0.01]
[1761618085251,0.454,4123.7,4123.2,2.42530073]
[1761618085559,0.454,4123.7,4123.1,0.01]
[1761618085856,0.454,4123.7,4123.6,2.42506547]
[1761618088043,1.29,4123.8,4123.7,2.42500666]
[1761618089242,1.29,4123.8,4123.7,2.54660666]
[1761618089844,1.29,4123.9,4123.8,2.42494786]
[1761618091214,1.744,4123.9,4123.7,0.1216]
[1761618091433,1.744,4123.9,4123.1,0.012]
[1761618091434,0.454,4123.8,4123.1,0.012]
[1761618091634,4.80934119,4123.8,4123.1,0.1336]
[1761618091844,0.5756,4123.8,4123.1,0.1336]
[1761618092012,0.8449909,4123.7,4123.1,0.1336]
[1761618092214,0.8449909,4123.7,4123.2,2.42530073]
[1761618092416,0.454,4123.6,4123.1,0.1336]
[1761618092627,0.454,4123.6,4123.3,2.42519402]
[1761618093054,0.454,4123.6,4123.2,2.42528569]
[1761618093970,0.454,4123.6,4123.3,2.42523734]
[1761618094464,0.454,4123.6,4123.4,2.42515953]
[1761618094678,0.454,4123.6,4123.4,2.425128]
[1761618095168,0.454,4123.6,4123.3,2.42523271]
[1761618095465,0.454,4123.6,4123.2,2.42526101]
[1761618095667,0.454,4123.6,4123.1,0.1336]
[1761618095668,1.29,4123.5,4123.1,0.1336]
[1761618095872,1.29,4123.5,4123.1,2.55895893]
[1761618096165,0.4616,4123.4,4123.2,2.42527114]
[1761618096398,0.4616,4123.4,4123.1,0.1336]
[1761618096550,0.4616,4123.4,4123.1,2.55895568]
[1761618096869,0.4616,4123.4,4123.1,2.55894138]
[1761618097052,1.29,4123.3,4123.1,2.55894138]
[1761618097255,1.29,4123.3,4123.2,2.42530073]
[1761618097857,1.29,4123.3,4123.1,0.1336]
[1761618098048,0.4616,4123.2,4123.1,2.55893385]
[1761618098441,0.4616,4123.2,4123.1,0.1336]
[1761618099472,0.4616,4123.2,4123.1,2.55895955]
[1761618100257,0.4616,4123.2,4123.1,0.1336]
[1761618100837,0.4616,4123.2,4123.1,2.55895955]
[1761618101273,0.4616,4123.2,4123.1,0.1336]
[1761618101473,1.7516,4123.2,4123.1,0.1336]
[1761618101875,1.7516,4123.2,4123.1,2.55895955]
[1761618104179,1.29,4123.2,4123.1,2.55895955]
[1761618105274,1.7516,4123.2,4123.1,2.55895955]
[1761618107249,1.7516,4123.2,4123.1,0.1336]
[1761618108181,1.92676,4123.2,4123.1,0.1336]
[1761618108370,1.92676,4123.2,4123.1,0.012]
[1761618110552,6.87626073,4123.2,4123.1,0.012]
[1761618110751,1.960704,4123.1,4122.6,0.002]
[1761618110956,4.19589487,4122.7,4122.6,0.002]
[1761618111150,1.7703,4122.7,4122.6,0.002]
[1761618111417,4.65749487,4122.7,4122.6,0.002]
[1761618112283,2.2319,4122.7,4122.6,0.002]
[1761618113183,4.65749487,4122.7,4122.6,0.002]
[1761618113489,4.91557257,4122.7,4122.6,0.002]
[1761618113688,2.4899777,4122.7,4122.6,0.002]
[1761618113871,4.91557257,4122.7,4122.6,0.002]
[1761618114264,9.14931376,4122.7,4122.6,0.002]
[1761618114685,10.43931376,4122.7,4122.6,0.002]
[1761618114984,10.95882861,4122.7,4122.6,0.002]
[1761618115291,11.36433261,4122.7,4122.6,0.002]
[1761618115461,2.42583024,4122.3,4122.2,0.002]
[1761618115660,9.59027543,4122.3,4122.2,0.002]
[1761618115866,10.57107304,4122.3,4122.2,0.002]
[1761618117279,10.57107304,4122.3,4122.1,1e-08]
[1761618117280,4.84819308,4122.2,4122.1,1e-08]
[1761618117457,2.83198172,4121.2,4120.1,0.11]
[1761618117665,2.42683079,4120.7,4120.1,0.11]
[1761618117865,0.2151,4120.2,4120.1,0.11]
[1761618118366,1.9667,4120.2,4120.1,0.11]
[1761618119094,1.5051,4120.2,4120.1,0.11]
[1761618119274,1.9667,4120.2,4120.1,0.11]
[1761618119473,1.9667,4120.2,4120.1,2.53712555]
[1761618119474,1.29,4120.2,4120.1,2.53712555]
[1761618119675,1.29,4120.2,4120.1,2.65872555]
[1761618119998,1.29,4120.2,4120.1,3.16732086]
[1761618120196,1.29,4120.2,4120.1,2.65872555]
[1761618120498,1.4116,4120.7,4120.1,0.2316]
[1761618120675,1.4116,4120.7,4120.3,2.42700436]
[1761618120880,1.4116,4120.7,4120.5,2.42683294]
[1761618121090,1.4116,4120.7,4120.1,0.2316]
[1761618121091,1.8732,4120.7,4120.1,0.2316]
[1761618121284,1.8732,4120.7,4120.2,2.42706664]
[1761618121486,1.8732,4120.7,4120.5,2.4268447]
[1761618121697,1.8732,4120.7,4120.3,2.42700734]
[1761618122003,1.29,4120.7,4120.6,2.42683104]
[1761618123575,1.7516,4120.7,4120.4,3.51854695]
[1761618123782,0.4616,4120.6,4120.4,0.97]
[1761618124010,0.4616,4120.6,4120.4,3.39694416]
[1761618124311,0.4616,4120.6,4120.4,0.97]
[1761618124474,0.4616,4120.6,4120.3,2.42700375]
[1761618124978,4.38777064,4120.2,4120.1,0.112]
[1761618125415,0.405504,4120.1,4119.1,0.01]
[1761618125580,0.405504,4119.9,4119.1,0.01]
[1761618125782,15.53635638,4120.1,4119.1,0.01]
[1761618125783,0.405504,4119.7,4119.1,0.01]
[1761618126107,2.42757394,4119.4,4119.1,0.01]
[1761618126273,0.405504,4119.2,4119.1,0.01]
[1761618126476,5.00681025,4119.2,4119.1,0.01]
[1761618127291,6.29681025,4119.2,4119.1,0.01]
[1761618127812,3.4636504,4119.2,4119.1,0.01]
[1761618128011,3.2941,4119.2,4119.1,0.01]
[1761618128789,2.8452,4119.2,4119.1,0.01]
[1761618129210,1.29,4119.2,4119.1,0.01]
[1761618129987,1.7389,4119.2,4119.1,0.01]
[1761618131000,6.12725985,4119.2,4119.1,0.01]
[1761618131222,4.81620492,4119.2,4119.1,0.01]
[1761618131593,4.41070092,4119.2,4119.1,0.01]
[1761618131793,5.72175585,4119.2,4119.1,0.01]
[1761618132319,6.12725985,4119.2,4119.1,0.01]
[1761618134610,6.12725985,4119.2,4118.1,0.11]
[1761618134611,0.405504,4119.0,4118.1,0.11]
[1761618134811,0.2336,4118.2,4118.1,0.11]
[1761618135107,0.3552,4118.2,4118.1,0.11]
[1761618135436,0.8041,4118.2,4118.1,0.11]
[1761618138919,2.0741,4118.2,4118.1,0.11]
[1761618139125,6.65750262,4118.2,4118.1,0.11]
[1761618139292,5.93594534,4118.2,4118.1,0.11]
[1761618140465,5.93594534,4118.2,4117.1,0.01]
[1761618140466,1.27,4118.1,4117.1,0.01]
[1761618140595,4.21763513,4117.2,4117.1,0.01]
[1761618140798,6.45863513,4117.2,4117.1,0.01]
[1761618141094,7.31303913,4117.2,4117.1,0.01]
[1761618141344,7.31303913,4117.2,4116.1,0.11]
[1761618141345,1.5552,4116.7,4116.1,0.11]
[1761618141631,4.21822519,4116.2,4116.1,0.11]
[1761618141926,6.15297258,4116.2,4116.1,0.11]
[1761618142091,5.93712519,4116.2,4116.1,0.11]
[1761618142293,7.31362919,4116.2,4116.1,0.11]
[1761618143355,1.5036,4116.2,4116.1,0.11]
[1761618143510,1.9525,4116.2,4116.1,0.11]
[1761618143912,2.358004,4116.2,4116.1,0.11]
[1761618145245,1.9525,4116.2,4116.1,0.11]
[1761618145543,1.5036,4116.2,4116.1,0.11]
[1761618145730,1.27,4116.2,4116.1,0.11]
[1761618145913,1.27,4116.2,4116.1,2.53948422]
[1761618146330,1.27,4116.2,4116.1,2.70848422]
[1761618146516,1.27,4116.2,4116.1,3.22228915]
[1761618147657,1.27,4116.2,4116.1,3.05328915]
[1761618148210,1.27,4116.2,4116.1,2.53948422]
[1761618148747,1.27,4116.2,4116.1,3.51048422]
[1761618149110,1.27,4116.2,4116.1,3.63208422]
[1761618149441,1.27,4116.2,4116.1,2.66108422]
[1761618149818,1.27,4116.2,4116.1,0.2316]
[1761618150016,1.27,4116.2,4116.1,0.11]
[1761618150017,1.397,4116.2,4116.1,0.11]
[1761618150242,1.8459,4116.2,4116.1,0.11]
[1761618151146,4.27532519,4116.2,4116.1,0.11]
[1761618151346,1.8459,4116.2,4116.1,0.11]
[1761618153646,1.397,4116.2,4116.1,0.11]
[1761618153862,1.27,4116.2,4116.1,0.11]
[1761618154058,1.27,4116.2,4116.1,2.53948422]
[1761618155766,1.27,4116.2,4116.1,0.11]
[1761618155968,1.27,4116.2,4116.1,2.53948422]
[1761618155969,1e-08,4116.2,4116.1,2.53948422]
[1761618156269,0.4635,4118.9,4116.1,2.53948422]
[1761618156270,0.2257,4117.9,4116.2,1.5552]
[1761618156498,2.42858268,4117.7,4116.6,2.42918088]
[1761618156769,3.98390295,4117.5,4116.3,0.971]
[1761618157065,0.71014092,4117.6,4116.9,2.42896026]
[1761618157253,0.4635,4117.6,4116.9,2.42896026]
[1761618157657,1.5552,4117.5,4116.2,0.971]
[1761618157859,1.5552,4117.5,4116.9,2.42896806]
[1761618158065,0.4635,4117.6,4116.9,2.42896806]
[1761618158267,0.4635,4117.6,4116.8,2.42905676]
[1761618158478,0.93078345,4117.6,4116.8,2.42905676]
[1761618158850,0.4635,4117.5,4116.4,2.42925473]
[1761618159061,0.4635,4117.5,4116.2,3.40042519]
[1761618159062,2.42875776,4117.4,4116.5,2.42920705]
[1761618159264,3.98395776,4117.4,4116.5,2.42920705]
[1761618159460,0.4635,4117.5,4116.1,0.112]
[1761618159461,0.4635,4117.3,4116.1,0.112]
[1761618159669,0.4635,4117.3,4116.2,1.22515643]
[1761618159970,0.1216,4117.0,4116.8,2.42905012]
[1761618160139,0.1216,4117.0,4116.7,2.42911691]
[1761618160348,0.1216,4117.0,4116.9,2.42901212]
[1761618161876,0.001,4117.7,4116.9,0.169]
[1761618162061,0.001,4117.7,4116.5,0.971]
[1761618162265,1.5552,4117.5,4116.5,0.971]
[1761618162577,0.405504,4117.5,4116.0,0.169]
[1761618162752,2.42896291,4117.0,4116.1,2.54144394]
[1761618163147,1.5552,4117.2,4116.1,2.54144394]
[1761618163148,0.405504,4117.1,4116.1,0.112]
[1761618163342,0.405504,4117.1,4116.2,2.42938594]
[1761618163343,1.04631953,4117.1,4116.2,2.42938594]
[1761618163562,3.47522347,4117.1,4116.2,2.42938594]
[1761618163771,3.47522347,4117.1,4116.1,0.112]
[1761618164000,3.47522347,4117.1,4116.3,2.42933374]
[1761618164178,0.55939235,4117.0,4116.1,0.112]
[1761618164380,0.405504,4116.8,4116.1,0.112]
[1761618164594,4.61582919,4116.2,4116.1,0.112]
[1761618165083,5.07932919,4116.2,4116.1,0.112]
[1761618165385,5.08932919,4116.2,4116.1,0.112]
[1761618165780,2.659904,4116.2,4116.1,0.112]
[1761618165983,1.9282904,4116.2,4116.1,0.112]
[1761618166182,1.5652,4116.2,4116.1,0.112]
[1761618166553,3.99462519,4116.2,4116.1,0.112]
[1761618167294,4.45812519,4116.2,4116.1,0.112]
[1761618167501,4.86362919,4116.2,4116.1,0.112]
[1761618167815,5.37159727,4116.2,4116.1,0.102]
[1761618168016,6.2487893,4116.2,4116.1,0.102]
[1761618169182,6.24894687,4116.2,4116.1,0.102]
[1761618169409,5.73082122,4116.2,4116.1,0.102]
[1761618170098,5.26732122,4116.2,4116.1,0.102]
[1761618171119,5.73082122,4116.2,4116.1,0.102]
[1761618171418,6.24900813,4116.2,4116.1,0.102]
[1761618171620,5.26732122,4116.2,4116.1,0.102]
[1761618171916,5.85242122,4116.2,4116.1,0.102]
[1761618172885,1.960704,4115.8,4115.1,0.01]
[1761618173085,4.61641955,4115.2,4115.1,0.01]
[1761618173511,5.07991955,4115.2,4115.1,0.01]
[1761618175421,5.59734085,4115.2,4115.1,0.01]
[1761618177991,5.59734085,4115.2,4115.1,0.012]
[1761618178187,18.79121608,4115.2,4115.1,0.012]
[1761618178414,19.30781831,4115.2,4115.1,0.012]
[1761618178827,5.53024571,4115.2,4115.1,0.012]
[1761618178993,5.01364348,4115.2,4115.1,0.012]
[1761618179693,5.41914748,4115.2,4115.1,0.012]
[1761618180022,5.88264748,4115.2,4115.1,0.012]
[1761618180191,5.19344748,4115.2,4115.1,0.012]
[1761618180391,5.65694748,4115.2,4115.1,0.012]
[1761618180942,2.35792793,4115.2,4115.1,0.012]
[1761618181227,4.44871555,4115.2,4115.1,0.012]
[1761618181527,4.85421955,4115.2,4115.1,0.012]
[1761618181692,3.98521555,4115.2,4115.1,0.012]
[1761618182109,1.5552,4115.2,4115.1,0.012]
[1761618182527,1.376504,4115.7,4115.1,0.012]
[1761618182528,0.971,4115.7,4115.1,0.012]
[1761618182863,0.1216,4115.2,4115.1,0.181]
[1761618183648,0.971,4115.7,4115.1,0.131]
[1761618183839,0.1216,4115.4,4115.0,0.169]
[1761618184042,0.1216,4115.4,4115.1,2.4300673]
[1761618184918,0.1216,4115.4,4115.2,2.43001104]
[1761618185248,0.1216,4115.4,4115.1,2.43005513]
[1761618185759,0.1216,4115.4,4115.2,0.131]
[1761618186644,0.001,4116.2,4115.5,2.429808]
[1761618186844,0.1216,4115.7,4115.2,0.131]
[1761618187044,0.1216,4115.9,4115.8,2.42961758]
[1761618187356,0.001,4116.2,4115.8,0.131]
[1761618187674,0.001,4116.2,4116.0,2.42954324]
[1761618187820,0.001,4116.2,4116.0,2.68558667]
[1761618188018,0.001,4116.2,4116.1,2.56048422]
[1761618188734,0.001,4116.2,4116.1,2.68208422]
[1761618199172,0.001,4116.2,4115.7,2.42969481]
[1761618199363,0.001,4116.2,4115.0,0.169]
[1761618199364,0.15662,4116.2,4115.5,0.131]
[1761618199546,0.001,4116.2,4115.9,2.42955833]
[1761618199871,0.001,4116.2,4115.4,2.42989745]
[1761618200069,0.001,4116.2,4116.1,2.42948422]
[1761618201074,0.001,4116.2,4115.2,2.43001555]
[1761618201272,0.001,4116.2,4115.9,2.42958802]
[1761618201439,0.001,4116.2,4115.8,2.42965787]
[1761618201775,0.001,4116.2,4115.2,0.27320155]
[1761618201973,0.001,4116.2,4115.4,2.42984206]
[1761618201974,0.4721,4116.2,4115.4,2.42984206]
[1761618202292,0.4721,4116.2,4115.1,0.002]
[1761618202293,2.0273,4116.2,4115.1,0.002]
[1761618202578,0.4711,4116.1,4115.1,0.002]
[1761618202748,0.4711,4116.1,4115.1,2.43207415]
[1761618203087,2.42966669,4115.8,4115.1,0.002]
[1761618203456,0.4711,4115.7,4115.1,0.002]
[1761618203840,2.42982162,4115.6,4115.1,0.002]
[1761618204175,2.42992384,4115.4,4115.1,0.002]
[1761618204375,2.42990538,4115.4,4115.1,0.002]
[1761618204552,0.4711,4115.3,4115.1,0.002]
[1761618205449,0.29010054,4115.2,4115.1,0.002]
[1761618205677,2.43001555,4115.2,4115.1,0.002]
[1761618205878,0.4711,4115.6,4115.1,0.002]
[1761618206089,2.42985103,4115.5,4115.1,0.002]
[1761618206295,0.2900951,4115.4,4115.1,0.002]
[1761618206596,0.405504,4115.3,4115.1,0.002]
[1761618206883,0.4711,4115.5,4115.1,0.002]
[1761618207185,0.4711,4115.4,4115.1,0.002]
[1761618207386,2.42974927,4115.7,4115.1,0.002]
[1761618207585,0.25262,4115.8,4115.2,2.43001555]
[1761618207771,0.25262,4115.8,4115.1,0.002]
[1761618207959,2.42977702,4115.7,4115.1,0.002]
[1761618208159,3.98497702,4115.7,4115.1,0.002]
[1761618208365,2.42979661,4115.6,4115.1,0.002]
[1761618208696,0.4711,4115.7,4115.1,0.002]
[1761618208988,2.4296616,4115.8,4115.1,2.43203516]
[1761618209282,0.1216,4115.5,4115.1,2.43203516]
[1761618209657,0.1216,4115.5,4115.1,0.002]
[1761618210895,0.1216,4115.5,4115.1,2.43205787]
[1761618211376,0.1216,4115.5,4115.1,0.002]
[1761618211554,0.37672623,4115.5,4115.1,0.002]
[1761618211954,0.1216,4115.5,4115.1,0.002]
[1761618212688,0.1216,4115.5,4115.3,2.4299489]
[1761618212911,0.1216,4115.5,4115.3,2.42993001]
[1761618213262,0.1216,4115.5,4115.2,2.42997036]
[1761618213458,0.1216,4115.5,4115.1,0.002]
[1761618213802,0.1216,4115.7,4115.2,2.42999848]
[1761618214107,0.1216,4115.7,4115.3,2.42994062]
[1761618214407,0.1216,4115.7,4115.2,2.43001555]
[1761618214912,0.1216,4115.7,4115.1,0.002]
[1761618214913,0.001,4116.2,4115.1,0.002]
[1761618215196,3.98474337,4116.0,4115.2,2.42997033]
[1761618215406,3.98474337,4116.0,4114.5,2.43039364]
[1761618215407,0.405504,4115.2,4113.8,0.72934229]
[1761618215687,0.2156,4114.2,4113.4,2.43104922]
[1761618215887,4.20140619,4114.2,4113.2,2.43117912]
[1761618216074,5.09074681,4114.2,4113.1,0.141]
[1761618217289,3.53554681,4114.2,4113.1,0.141]
[1761618218894,3.53554681,4114.2,4113.1,2.57223679]
[1761618219095,1.10494062,4114.2,4113.1,0.141]
[1761618219262,3.53554681,4114.2,4113.1,0.141]
[1761618220366,3.53554681,4114.2,4113.1,2.57222961]
[1761618220566,3.53554681,4114.2,4110.3,0.24606841]
[1761618220567,1.16290389,4114.1,4111.5,0.141]
[1761618220759,1.16290389,4114.1,4110.5,0.141]
[1761618220760,1.5552,4112.7,4110.5,0.141]
[1761618221082,2.43133776,4113.0,4111.7,0.141]
[1761618221288,0.2156,4113.2,4111.7,0.141]
[1761618221289,0.4692,4113.1,4111.7,0.141]
[1761618221461,0.16568,4113.0,4111.7,0.141]
[1761618221669,1.72088,4113.0,4111.2,2.43232407]
[1761618221996,0.2156,4112.9,4111.5,0.141]
[1761618222208,1.5552,4112.8,4111.5,0.141]
[1761618222418,2.43178495,4112.3,4111.1,2.44242114]
[1761618222596,1.7983785,4112.2,4111.2,0.02432379]
[1761618222897,0.2431785,4112.2,4111.5,0.141]
[1761618223060,3.98698833,4112.2,4111.1,0.01]
[1761618223495,4.45618833,4112.2,4111.1,0.01]
[1761618223682,4.45618833,4112.2,4111.1,2.44242948]
[1761618223889,1.5552,4112.2,4111.2,0.141]
[1761618224091,0.972,4113.1,4111.3,0.972]
[1761618224287,1.5552,4112.8,4111.7,0.141]
[1761618224613,3.98680693,4112.6,4111.7,0.141]
[1761618224761,1.5552,4112.5,4111.7,0.141]
[1761618224964,2.55320693,4112.6,4112.0,0.1216]
[1761618225191,1.6768,4112.6,4112.0,0.1216]
[1761618225565,0.1216,4112.3,4111.7,2.69466779]
[1761618226100,2.43167692,4112.4,4111.7,0.2626]
[1761618226467,0.1216,4112.5,4111.7,0.2626]
[1761618226468,2.5532182,4112.5,4111.7,2.69467129]
[1761618226663,0.1216,4112.5,4112.1,0.151]
[1761618226869,0.1216,4112.7,4112.1,2.70441868]
[1761618227079,0.1216,4112.7,4112.1,0.2726]
[1761618227919,0.1216,4112.7,4112.3,2.43168514]
[1761618228115,0.2156,4113.6,4112.2,0.141]
[1761618228269,0.1216,4113.0,4112.4,2.55321434]
[1761618228468,0.1216,4113.0,4112.6,2.43152236]
[1761618228678,2.43102378,4113.5,4112.7,2.57249012]
[1761618228883,0.1216,4113.4,4112.8,2.55302797]
[1761618229088,0.1216,4113.4,4112.8,0.1216]
[1761618229490,0.1216,4113.4,4112.9,2.43133034]
[1761618229666,0.1216,4113.6,4113.0,2.43130836]
[1761618230064,0.1216,4113.6,4112.9,2.4313558]
[1761618230601,0.1216,4113.6,4112.9,0.141]
[1761618230802,0.1216,4113.8,4113.2,0.1216]
[1761618230974,0.1216,4114.1,4113.5,0.1216]
[1761618231369,2.55229396,4114.1,4113.5,0.1216]
[1761618231706,2.55226527,4114.1,4113.5,0.1216]
[1761618231891,0.1216,4114.1,4113.5,0.1216]
[1761618232200,0.1216,4114.1,4113.5,0.61998572]
[1761618232399,0.1216,4114.3,4113.8,0.1216]
[1761618232909,0.1216,4114.3,4113.8,2.55243878]
[1761618233112,0.1216,4114.3,4113.8,0.1216]
[1761618233613,2.55215217,4114.3,4113.8,0.1216]
[1761618233815,2.4306126,4114.2,4113.8,0.1216]
[1761618233981,0.2156,4113.9,4113.0,0.972]
[1761618234192,2.7679903,4113.9,4113.2,0.1216]
[1761618234386,2.7679903,4113.9,4113.5,0.002]
[1761618234690,0.1216,4113.9,4113.5,0.002]
[1761618234882,2.55238581,4113.9,4113.5,0.002]
[1761618235292,0.1216,4113.9,4113.5,0.002]
[1761618235489,0.4692,4114.5,4113.5,0.002]
[1761618235691,2.43066701,4114.1,4113.6,0.1216]
[1761618236310,0.4692,4114.0,4113.5,0.002]
[1761618236497,2.43083234,4113.9,4113.5,0.002]
[1761618236686,2.43085317,4113.8,4113.5,0.002]
[1761618237502,0.4692,4114.0,4113.5,0.002]
[1761618237697,0.1216,4113.8,4113.5,0.002]
[1761618238005,0.1216,4113.8,4113.2,0.0736]
[1761618238207,2.55244847,4113.8,4113.2,0.0736]
[1761618238501,2.43091896,4113.7,4113.2,0.0736]
[1761618238691,0.1216,4113.8,4113.2,0.0736]
[1761618238897,0.1216,4113.8,4113.2,2.50475888]
[1761618239092,0.1216,4113.8,4113.2,0.0736]
[1761618239307,0.4692,4113.7,4112.5,2.43160795]
[1761618239605,2.43100563,4113.6,4113.0,0.1216]
[1761618239806,0.1216,4113.8,4113.0,0.1216]
[1761618239974,0.1216,4113.8,4113.2,2.43119344]
[1761618240174,0.1216,4113.8,4113.0,2.69389652]
[1761618240175,0.1216,4113.8,4113.1,0.02431256]
[1761618240413,0.1216,4114.0,4113.5,2.4310122]
[1761618240906,2.8996093,4114.6,4113.7,2.43085756]
[1761618240907,2.43047336,4114.5,4113.7,2.43085756]
[1761618241110,0.1216,4114.2,4113.7,2.43085756]
[1761618241273,0.1216,4114.2,4113.4,0.1216]
[1761618241274,2.5522548,4114.2,4113.4,0.1216]
[1761618241479,2.43067184,4114.1,4113.4,0.1216]
[1761618241682,2.43067184,4114.1,4113.4,2.55265601]
[1761618242010,2.55221774,4114.2,4113.5,2.43101806]
[1761618242505,2.55221774,4114.2,4113.4,0.1216]
[1761618242506,2.43067019,4114.1,4113.4,0.1216]
[1761618242680,2.55222668,4114.2,4113.5,2.43100439]
[1761618242880,0.1216,4114.2,4113.4,0.1216]
[1761618243096,0.1216,4114.2,4113.7,2.43085034]
[1761618243300,1.7808,4114.8,4113.3,0.282]
[1761618243504,2.43052893,4114.4,4113.6,2.43092618]
[1761618243702,2.43052893,4114.4,4113.7,2.4308953]
[1761618244515,2.43052893,4114.4,4113.3,0.141]
[1761618244516,0.4549,4114.4,4113.3,0.141]
[1761618244737,0.2256,4114.8,4114.4,2.4304369]
[1761618244935,0.2256,4114.8,4113.9,0.972]
[1761618245108,0.2256,4114.8,4114.0,2.43072435]
[1761618245313,0.01,4114.8,4114.7,2.43031083]
[1761618245507,0.01,4114.8,4114.7,4.0293807]
[1761618246022,0.01,4114.8,4114.7,4.0536838]
[1761618246189,0.01,4114.8,4114.7,4.0293807]
[1761618246687,0.001,4115.1,4115.0,2.43013365]
[1761618247022,0.001,4115.1,4115.0,3.46253652]
[1761618248733,0.476,4115.1,4114.4,2.43043576]
[1761618249431,0.476,4115.1,4114.5,2.43042194]
[1761618249721,0.476,4115.1,4114.1,2.43065453]
[1761618250024,2.90608199,4115.1,4114.2,2.43060619]
[1761618250321,0.476,4115.1,4113.8,0.29529436]
[1761618250540,0.476,4115.1,4113.7,0.141]
[1761618250740,2.43022495,4114.9,4113.9,2.43073352]
[1761618251036,2.43022495,4114.9,4113.8,3.40281046]
[1761618251239,0.2255,4114.8,4113.9,0.34028105]
[1761618251448,0.2255,4114.8,4114.3,2.43049788]
[1761618252351,0.2255,4114.8,4114.2,2.43059786]
[1761618252651,0.2255,4114.8,4114.3,2.43054513]
[1761618253321,0.2255,4114.8,4114.3,2.55214513]
[1761618253525,0.2255,4114.8,4114.3,2.55213868]
[1761618253723,0.001,4115.1,4114.3,0.49828025]
[1761618253922,0.001,4115.1,4113.9,3.88]
[1761618254128,0.001,4115.1,4114.0,2.57172435]
[1761618254310,0.001,4115.1,4114.8,2.43024014]
[1761618254615,0.001,4115.1,4114.0,0.141]
[1761618254816,0.001,4115.1,4114.5,2.43042737]
[1761618255218,2.43110153,4115.1,4114.3,2.4305237]
[1761618255532,0.2255,4114.2,4113.7,2.43089079]
[1761618255738,0.2255,4114.2,4113.7,2.43086764]
[1761618255908,0.2255,4114.2,4113.8,2.4308238]